bitfinex-derivatives/quotes_SOLF0:USTF0_20250507
["timestamp","ask_amount","ask_price","bid_price","bid_amount"]
[1746576505021,31.12,146.96,146.88,2.071]
[1746576505222,31.26,146.95,146.88,2.071]
[1746576505422,38.0656,146.95,146.88,2.071]
[1746576505922,38.0656,146.95,146.92,6.8067]
[1746576506323,31.24,146.94,146.88,2.071]
[1746576506517,37.925,146.96,146.88,2.071]
[1746576506723,31.26,146.95,146.88,2.071]
[1746576507024,31.24,146.95,146.88,2.071]
[1746576507227,31.24,146.95,146.93,6.8062]
[1746576507426,31.3,146.95,146.88,2.071]
[1746576507928,31.3,146.95,146.93,6.8061]
[1746576508530,31.3,146.95,146.88,2.071]
[1746576509017,31.3,146.95,146.89,6.8079]
[1746576509220,6.807,146.92,146.88,2.071]
[1746576509527,31.6,146.91,146.88,2.071]
[1746576510029,31.6,146.91,146.9,6.8076]
[1746576510730,31.58,146.94,146.88,2.071]
[1746576512028,31.58,146.94,146.93,6.8063]
[1746576512619,31.12,146.96,146.93,6.8063]
[1746576512821,62.68,146.96,146.94,6.8057]
[1746576513022,31.56,146.96,146.94,6.8057]
[1746576513926,6.8041,146.98,146.9,31.12]
[1746576514131,31.54,146.97,146.91,2.1484]
[1746576514533,31.54,146.97,146.95,6.805]
[1746576514830,38.3444,146.97,146.91,2.1484]
[1746576515019,31.54,146.97,146.91,2.1484]
[1746576515426,31.54,146.97,146.9,31.12]
[1746576516030,6.8051,146.96,146.9,31.12]
[1746576516433,6.8051,146.96,146.92,6.8063]
[1746576516734,6.8051,146.96,146.9,31.12]
[1746576517131,6.8055,146.95,146.9,31.12]
[1746576517334,31.54,146.97,146.9,31.12]
[1746576517736,6.8053,146.95,146.92,6.8064]
[1746576517937,6.8053,146.95,146.9,31.12]
[1746576518937,6.8051,146.96,146.9,31.12]
[1746576519236,31.54,146.97,146.9,31.12]
[1746576519839,6.8051,146.96,146.93,6.8063]
[1746576520333,31.54,146.97,146.9,31.12]
[1746576520541,6.8049,146.96,146.9,31.12]
[1746576521039,6.8049,146.96,146.93,6.8058]
[1746576521235,6.8049,146.96,146.9,31.12]
[1746576521643,38.3446,146.97,146.94,6.8058]
[1746576522546,6.804,146.98,146.95,6.8052]
[1746576522735,31.44,146.97,146.95,6.8052]
[1746576523340,31.44,146.97,146.96,6.8049]
[1746576523542,31.42,146.97,146.91,2.1558]
[1746576523736,31.42,146.98,146.91,2.1558]
[1746576524241,31.42,146.99,146.97,6.8041]
[1746576524442,31.12,147.02,146.94,31.12]
[1746576524629,31.4,147.01,146.97,6.8039]
[1746576524831,31.4,147.01,146.91,33.2758]
[1746576525036,31.4,147.01,146.94,6.8055]
[1746576525744,31.4,147.01,146.93,6.8059]
[1746576525943,1.2287462,147.0,146.93,6.8059]
[1746576526245,6.8052,146.96,146.93,6.8059]
[1746576526444,31.4,146.95,146.93,6.8059]
[1746576526942,38.2056,146.95,146.92,6.8065]
[1746576527333,31.4,146.95,146.93,6.8062]
[1746576528744,38.2055,146.95,146.92,6.8065]
[1746576529138,31.4,146.95,146.91,31.12]
[1746576529342,31.4,146.95,146.92,6.8066]
[1746576529544,31.4,146.95,146.91,31.12]
[1746576530446,31.4,146.95,146.92,6.8064]
[1746576530746,38.2054,146.95,146.92,6.8064]
[1746576530944,31.4,146.95,146.91,31.12]
[1746576531146,31.4,146.95,146.92,6.8063]
[1746576531647,31.4,146.95,146.91,31.12]
[1746576531850,6.8059,146.94,146.91,31.12]
[1746576532049,31.4,146.95,146.89,2.0106]
[1746576532748,31.4,146.95,146.93,6.806]
[1746576532947,31.4,146.98,146.89,2.0106]
[1746576533149,31.26,146.95,146.89,2.0106]
[1746576533547,38.0656,146.95,146.89,2.0106]
[1746576533846,31.26,146.95,146.91,6.8068]
[1746576534049,6.8059,146.94,146.91,6.8068]
[1746576534246,31.26,146.95,146.89,2.0106]
[1746576535250,38.0654,146.95,146.92,6.8064]
[1746576535550,31.26,146.95,146.89,2.0106]
[1746576535751,31.26,146.95,146.91,6.8068]
[1746576535947,6.8058,146.94,146.91,6.8068]
[1746576536949,38.0655,146.95,146.91,6.8068]
[1746576537547,31.26,146.95,146.89,6.8077]
[1746576537742,31.26,146.95,146.88,31.4]
[1746576538046,6.807,146.92,146.88,6.8082]
[1746576538252,31.4,146.94,146.86,2.1644]
[1746576538552,31.16,146.93,146.86,2.1644]
[1746576538745,6.8075,146.91,146.87,6.8088]
[1746576539953,6.8075,146.91,146.86,2.1644]
[1746576540149,6.8077,146.9,146.86,2.1644]
[1746576540748,6.8082,146.89,146.86,2.1644]
[1746576540950,6.8082,146.89,146.84,7.9607951]
[1746576541152,37.9282,146.89,146.84,7.9607951]
[1746576541349,37.9282,146.89,146.85,6.8096]
[1746576541850,6.8086,146.88,146.85,6.8099]
[1746576542051,31.12,146.89,146.83,624.0839]
[1746576542548,31.12,146.89,146.83,35.6639]
[1746576542952,37.9283,146.89,146.86,6.8092]
[1746576543149,37.9283,146.89,146.83,35.6639]
[1746576543454,31.12,146.89,146.83,35.6639]
[1746576543645,31.12,146.89,146.83,33.5125]
[1746576544153,6.8093,146.87,146.83,40.323]
[1746576544355,6.8093,146.87,146.83,33.5125]
[1746576544753,6.8093,146.87,146.84,6.8104]
[1746576546851,31.12,146.89,146.8,31.4]
[1746576547057,33.1466,146.89,146.8,31.4]
[1746576548059,1.2299693,146.88,146.77,31.42]
[1746576548256,9.34476952,146.86,146.77,38.2335]
[1746576548457,62.5,146.85,146.77,6.8135]
[1746576548954,6.8118,146.81,146.77,6.8135]
[1746576549152,31.08,146.8,146.78,6.8132]
[1746576550058,31.08,146.8,146.74,39.3807951]
[1746576550456,31.08,146.8,146.78,6.813]
[1746576551355,31.08,146.8,146.79,6.8127]
[1746576553463,31.08,146.8,146.74,31.42]
[1746576553764,31.08,146.8,146.73,6.1989]
[1746576554557,37.8927,146.8,146.76,6.8139]
[1746576554758,31.08,146.8,146.76,6.8139]
[1746576555161,37.8927,146.8,146.76,6.8139]
[1746576555562,31.08,146.8,146.75,6.8144]
[1746576555964,6.813,146.79,146.75,6.8144]
[1746576556160,31.08,146.8,146.75,6.8144]
[1746576556563,31.08,146.8,146.71,31.42]
[1746576556761,33.2623,146.8,146.71,31.42]
[1746576556961,33.2623,146.8,146.73,6.8153]
[1746576557265,42.60706952,146.8,146.69,6.4843]
[1746576557765,6.8145,146.76,146.72,6.8158]
[1746576557962,30.94,146.75,146.72,6.8158]
[1746576558266,30.94,146.75,146.69,6.4843]
[1746576558765,30.94,146.75,146.73,6.8152]
[1746576559264,30.94,146.75,146.69,6.4843]
[1746576559465,30.94,146.75,146.72,6.8158]
[1746576560068,37.7546,146.75,146.72,6.8158]
[1746576560466,30.94,146.75,146.73,6.8155]
[1746576560866,30.94,146.75,146.69,6.4843]
[1746576561065,30.94,146.75,146.71,6.8164]
[1746576561265,30.94,146.75,146.69,2.1834]
[1746576561767,30.94,146.75,146.7,6.8166]
[1746576562162,6.816,146.73,146.7,6.8166]
[1746576562358,30.94,146.75,146.71,6.8165]
[1746576562668,6.8152,146.74,146.71,6.8165]
[1746576563972,6.8156,146.73,146.7,6.8167]
[1746576564866,30.94,146.75,146.66,2.0576]
[1746576565569,30.94,146.75,146.73,6.8153]
[1746576566067,30.94,146.75,146.74,6.8151]
[1746576568270,30.96,146.76,146.75,6.8146]
[1746576568475,62.0,146.79,146.7,4.1975]
[1746576568964,62.0,146.79,146.77,6.8134]
[1746576569165,62.0,146.79,146.73,30.98]
[1746576569378,31.02,146.79,146.73,30.98]
[1746576569768,37.8328,146.79,146.73,30.98]
[1746576570168,31.02,146.79,146.73,30.98]
[1746576571673,31.02,146.79,146.76,6.8141]
[1746576571869,31.02,146.79,146.73,30.98]
[1746576572273,31.02,146.79,146.77,6.8134]
[1746576574174,30.9,146.81,146.79,6.8127]
[1746576574369,30.9,146.81,146.73,30.98]
[1746576575267,37.7119,146.81,146.73,30.98]
[1746576575673,37.7916,146.82,146.79,6.8126]
[1746576575873,9.36600622,146.88,146.75,30.88]
[1746576576070,30.88,146.87,146.76,35.061]
[1746576576368,37.6899,146.86,146.82,6.8109]
[1746576576573,30.88,146.85,146.82,6.8109]
[1746576576774,30.88,146.85,146.76,35.061]
[1746576576775,30.96,146.91,146.8,30.96]
[1746576577072,30.98,146.9,146.81,33.0252]
[1746576577674,6.8089,146.88,146.81,33.0252]
[1746576578076,30.98,146.9,146.81,33.0252]
[1746576579180,6.809,146.88,146.84,6.8101]
[1746576579476,30.98,146.9,146.81,33.0252]
[1746576579777,6.8093,146.87,146.83,6.8106]
[1746576579967,30.96,146.86,146.83,6.8106]
[1746576580970,30.96,146.86,146.81,33.0252]
[1746576581480,30.96,146.86,146.84,6.81]
[1746576582573,6.8084,146.89,146.81,33.0252]
[1746576582778,30.96,146.91,146.81,33.0252]
[1746576582779,30.96,146.91,146.82,4.2711]
[1746576582980,30.96,146.9,146.82,4.2711]
[1746576583985,30.94,146.9,146.82,4.2711]
[1746576584888,37.7477,146.9,146.87,6.8088]
[1746576585088,30.94,146.9,146.84,30.96]
[1746576585890,30.94,146.9,146.82,4.2711]
[1746576586092,30.94,146.9,146.84,6.8103]
[1746576586385,30.94,146.9,146.82,4.2711]
[1746576586588,6.8093,146.87,146.84,6.8102]
[1746576586792,31.04,146.86,146.84,6.8102]
[1746576587188,37.8497,146.86,146.83,6.8107]
[1746576587389,31.04,146.86,146.82,4.2711]
[1746576588290,31.04,146.86,146.84,6.8104]
[1746576590893,37.8495,146.86,146.83,6.8108]
[1746576591388,37.8498,146.86,146.83,6.8105]
[1746576591784,37.8498,146.86,146.81,33.0252]
[1746576591785,31.04,146.86,146.81,33.0252]
[1746576592090,31.04,146.86,146.84,6.8101]
[1746576593296,31.02,146.87,146.81,38.87146673]
[1746576593589,61.96,146.87,146.81,33.0252]
[1746576593889,6.8096,146.86,146.84,6.8104]
[1746576594088,61.96,146.87,146.84,6.8104]
[1746576594793,68.7693,146.87,146.84,6.8104]
[1746576595989,68.7693,146.87,146.85,6.8099]
[1746576596496,68.7693,146.87,146.84,6.8103]
[1746576596793,31.02,146.9,146.81,38.87146673]
[1746576596988,30.86,146.89,146.81,38.87146673]
[1746576597188,30.86,146.89,146.87,6.8086]
[1746576597492,30.88,146.89,146.81,69.73146673]
[1746576597688,6.8069,146.92,146.84,5.84626673]
[1746576597887,31.02,146.93,146.85,35.1088]
[1746576598194,30.86,146.92,146.91,6.807]
[1746576598793,30.86,146.92,146.85,35.1088]
[1746576599997,37.6668,146.92,146.85,35.1088]
[1746576600296,30.86,146.92,146.85,35.1088]
[1746576600495,6.8073,146.91,146.88,6.8083]
[1746576602391,6.8073,146.91,146.89,6.8081]
[1746576602596,37.6669,146.92,146.89,6.8081]
[1746576602796,37.6669,146.92,146.85,35.1088]
[1746576602996,37.6669,146.92,146.89,6.8078]
[1746576603796,37.8265,146.93,146.9,6.8076]
[1746576603998,30.76,146.93,146.87,5.84626673]
[1746576604295,30.76,146.93,146.88,2.0285]
[1746576604897,30.76,146.93,146.92,6.8067]
[1746576606497,37.8249,146.96,146.89,31.02]
[1746576606796,61.76,146.96,146.89,31.02]
[1746576606999,33.195,146.99,146.9,5.84626673]
[1746576607197,6.8047,146.97,146.94,6.8054]
[1746576607594,30.76,146.98,146.9,5.84626673]
[1746576607898,37.8238,146.99,146.91,4.2508]
[1746576608099,61.76,146.99,146.91,4.2508]
[1746576608496,30.74,146.99,146.91,4.2508]
[1746576608698,61.74,147.02,146.93,5.84626673]
[1746576608895,68.5422,147.02,146.94,33.0993]
[1746576609404,68.5422,147.02,146.98,6.8035]
[1746576609793,68.5222,147.02,146.98,6.8035]
[1746576610103,68.5222,147.02,146.99,6.8033]
[1746576611705,68.5022,147.02,146.99,6.8033]
[1746576612906,6.8028,147.01,146.98,6.8036]
[1746576613407,6.8028,147.01,146.94,33.0993]
[1746576613706,68.5023,147.02,146.94,33.0993]
[1746576613906,61.7,147.02,146.94,33.0993]
[1746576614407,68.5024,147.02,146.99,6.8034]
[1746576615104,61.7,147.02,147.0,6.803]
[1746576615404,30.7,147.02,147.0,6.803]
[1746576615606,30.7,147.02,147.01,6.8025]
[1746576616206,37.8009,147.05,147.02,6.8021]
[1746576616410,61.72,147.05,146.98,31.0]
[1746576616608,30.72,147.08,146.99,4.3018]
[1746576616908,30.72,147.07,147.04,6.8009]
[1746576617107,30.72,147.07,146.98,31.0]
[1746576617308,6.8014,147.04,147.0,6.8026]
[1746576617505,31.3,147.03,146.98,31.0]
[1746576617809,31.3,147.06,146.98,31.0]
[1746576618011,2.1592,147.1,146.98,31.0]
[1746576618309,31.3,147.09,147.0,9.3343452]
[1746576618510,31.3,147.09,147.01,37.525]
[1746576618709,31.3,147.09,147.02,30.7]
[1746576619104,31.3,147.09,147.06,6.7999]
[1746576619307,38.0991,147.09,147.06,6.7999]
[1746576619508,31.3,147.09,147.02,30.7]
[1746576619899,6.7996,147.08,147.02,30.7]
[1746576620104,31.3,147.09,147.02,30.7]
[1746576620308,6.8003,147.06,147.02,30.7]
[1746576620709,30.7,147.08,147.02,37.5019]
[1746576620905,30.7,147.08,147.02,6.8019]
[1746576621810,6.8006,147.06,147.02,6.8019]
[1746576622109,31.2,147.05,147.02,6.8019]
[1746576622411,31.2,147.05,147.03,6.8016]
[1746576622611,31.2,147.05,147.01,2.1329]
[1746576623813,31.2,147.05,147.03,6.8013]
[1746576624612,31.2,147.05,147.04,6.8012]
[1746576624814,31.12,147.07,147.01,2.1329]
[1746576625712,31.14,147.09,147.07,6.7996]
[1746576625913,30.7,147.11,147.03,30.7]
[1746576626104,31.14,147.1,147.07,6.7997]
[1746576626309,37.9388,147.1,147.07,6.7997]
[1746576627116,30.7,147.14,147.03,61.94]
[1746576627415,31.24,147.13,147.03,71.2743452]
[1746576627615,38.0373,147.13,147.09,6.7985]
[1746576628113,38.0373,147.13,147.03,71.2743452]
[1746576628312,38.0373,147.13,147.1,6.7981]
[1746576628511,31.24,147.13,147.03,71.2743452]
[1746576629315,6.7976,147.12,147.03,71.2743452]
[1746576629613,31.24,147.13,147.03,71.2743452]
[1746576630016,6.7982,147.11,147.07,6.7993]
[1746576630209,31.24,147.13,147.07,6.7993]
[1746576630814,31.24,147.13,147.06,6.8]
[1746576631016,31.24,147.13,147.03,30.7]
[1746576631815,6.7984,147.1,147.07,6.7995]
[1746576632017,31.18,147.09,147.07,6.7995]
[1746576635221,31.18,147.09,147.08,6.7993]
[1746576636220,31.18,147.09,147.07,6.7996]
[1746576636820,31.18,147.09,147.08,6.7993]
[1746576638423,31.18,147.09,147.07,6.7996]
[1746576640723,31.18,147.09,147.08,6.7993]
[1746576642719,6.7974,147.13,147.1,6.7982]
[1746576642923,30.9,147.12,147.03,70.9343452]
[1746576643319,37.6977,147.12,147.09,6.7985]
[1746576643717,37.6977,147.12,147.04,5.82570997]
[1746576644017,37.6977,147.12,147.1,6.7983]
[1746576645023,6.7977,147.12,147.1,6.7983]
[1746576645224,37.6577,147.12,147.1,6.7983]
[1746576645524,37.6577,147.12,147.09,6.7987]
[1746576646827,37.6577,147.12,147.1,6.7983]
[1746576647023,30.86,147.12,147.1,6.7983]
[1746576647627,37.6576,147.12,147.09,6.7986]
[1746576649931,30.86,147.12,147.08,6.7992]
[1746576650329,6.7982,147.11,147.08,6.7992]
[1746576650721,30.86,147.12,147.07,6.7995]
[1746576650927,6.7987,147.1,147.07,6.7995]
[1746576651330,30.86,147.12,147.03,30.7]
[1746576652732,37.6576,147.12,147.09,6.7984]
[1746576653426,30.86,147.12,147.1,6.7981]
[1746576653729,30.66,147.12,147.1,6.7981]
[1746576653930,30.66,147.12,147.05,5.82570997]
[1746576654131,30.66,147.12,147.11,6.7979]
[1746576655234,30.66,147.12,147.1,6.7982]
[1746576661229,30.5,147.12,147.1,6.7982]
[1746576664833,30.5,147.12,147.07,30.8]
[1746576665735,30.5,147.12,147.04,30.8]
[1746576666144,30.5,147.12,147.07,6.7994]
[1746576666145,6.7987,147.1,147.07,6.7994]
[1746576666434,30.5,147.12,147.04,30.8]
[1746576666638,6.7986,147.1,147.06,6.7999]
[1746576666836,6.7986,147.1,147.04,30.8]
[1746576667238,6.7989,147.09,147.06,6.8001]
[1746576667431,30.42,147.08,147.06,6.8001]
[1746576667737,30.42,147.08,147.07,6.7998]
[1746576669439,30.42,147.08,147.06,6.8002]
[1746576670337,30.42,147.08,147.07,6.7998]
[1746576671239,30.42,147.08,147.06,6.8]
[1746576671539,30.42,147.08,147.04,30.8]
[1746576671740,30.42,147.08,147.02,4.1521]
[1746576671940,30.42,147.08,147.01,32.9329]
[1746576672627,30.42,147.08,147.03,6.8012]
[1746576673033,30.42,147.08,147.01,32.9329]
[1746576673235,6.801,147.05,147.01,8.9353]
[1746576673435,30.44,147.04,147.01,2.1329]
[1746576674839,30.44,147.04,147.02,6.8018]
[1746576676539,30.44,147.04,147.03,6.8016]
[1746576676942,30.44,147.04,147.01,2.1329]
[1746576677236,30.44,147.04,146.98,34.9777]
[1746576677443,30.44,147.04,146.98,30.8]
[1746576677637,30.44,147.04,146.99,6.8034]
[1746576678139,30.44,147.04,146.95,30.46]
[1746576678640,6.8027,147.01,146.96,6.8047]
[1746576678836,30.44,147.0,146.96,6.8047]
[1746576679040,30.44,147.0,146.94,6.1219]
[1746576681242,30.44,147.0,146.98,6.8037]
[1746576683246,30.44,147.0,146.94,6.1219]
[1746576684040,30.44,147.0,146.97,6.8041]
[1746576684245,6.8037,146.99,146.92,30.46]
[1746576684446,6.8037,146.99,146.95,6.8049]
[1746576684748,6.8037,146.99,146.92,30.46]
[1746576685046,30.44,147.0,146.92,30.46]
[1746576685545,6.804,146.98,146.95,6.8051]
[1746576685749,30.44,147.0,146.95,6.8051]
[1746576686054,30.44,147.0,146.92,30.46]
[1746576686243,6.8037,146.99,146.96,6.8045]
[1746576686443,30.44,147.0,146.96,6.8045]
[1746576687052,6.8036,146.99,146.96,6.8045]
[1746576688053,6.804,146.98,146.94,6.8056]
[1746576688253,30.46,146.97,146.89,42.46630997]
[1746576688453,30.38,146.96,146.89,42.46630997]
[1746576688753,30.38,146.96,146.95,6.8053]
[1746576690353,30.38,146.96,146.89,6.1806]
[1746576690655,30.38,146.96,146.89,2.0694]
[1746576690952,6.8056,146.95,146.91,6.8069]
[1746576691858,6.8059,146.94,146.91,6.8069]
[1746576692156,36.20570997,146.96,146.9,6.8075]
[1746576692353,2.1338,146.95,146.9,6.8075]
[1746576692558,6.8072,146.91,146.87,6.8087]
[1746576692764,30.42,146.9,146.86,30.46]
[1746576692958,30.42,146.9,146.84,2.1523]
[1746576694267,6.8081,146.89,146.84,2.1523]
[1746576694665,30.42,146.9,146.84,2.1523]
[1746576694856,37.2279,146.9,146.86,6.8092]
[1746576695262,37.2279,146.9,146.84,2.1523]
[1746576695660,30.42,146.9,146.84,2.1523]
[1746576696164,30.42,146.9,146.88,6.8086]
[1746576696464,30.42,146.9,146.84,2.1523]
[1746576697567,37.2279,146.9,146.87,6.8089]
[1746576698268,37.2279,146.9,146.88,6.8086]
[1746576698464,30.42,146.9,146.88,6.8086]
[1746576698966,30.42,146.9,146.89,6.8081]
[1746576699362,30.42,146.9,146.84,2.1523]
[1746576700060,30.42,146.9,146.89,6.8081]
[1746576700256,30.48,146.92,146.84,7.97800997]
[1746576700461,30.4,146.92,146.84,7.97800997]
[1746576700761,30.4,146.92,146.91,6.8072]
[1746576704072,30.4,146.95,146.94,6.8058]
[1746576704368,30.4,146.95,146.87,36.30570997]
[1746576704567,30.4,146.95,146.93,6.8058]
[1746576705369,37.2843,146.98,146.9,5.82570997]
[1746576705669,30.4,146.97,146.91,1.9946]
[1746576706067,30.4,146.97,146.87,30.48]
[1746576706268,30.4,146.97,146.87,32.5311]
[1746576706669,6.8064,146.93,146.9,6.8073]
[1746576706869,30.4,146.92,146.9,6.8073]
[1746576708467,30.4,146.92,146.87,32.5311]
[1746576708670,37.2067,146.92,146.89,6.8078]
[1746576709471,30.4,146.92,146.9,6.8076]
[1746576710869,30.4,146.92,146.89,6.8079]
[1746576711170,37.2068,146.92,146.89,6.8079]
[1746576711473,30.4,146.92,146.88,6.8085]
[1746576711667,6.8075,146.91,146.88,6.8085]
[1746576711968,30.4,146.92,146.89,6.8078]
[1746576712272,30.4,146.92,146.87,32.5311]
[1746576712772,30.4,146.92,146.91,6.8072]
[1746576714274,30.4,146.92,146.9,6.8074]
[1746576715374,37.1858,146.94,146.91,6.8072]
[1746576715574,30.4,146.93,146.91,6.8072]
[1746576718776,30.4,146.97,146.87,32.5311]
[1746576718973,30.4,146.96,146.89,5.82570997]
[1746576719171,30.4,146.97,146.9,3.9918]
[1746576719367,60.8,146.97,146.91,30.38]
[1746576719569,30.4,146.97,146.91,30.38]
[1746576719978,30.4,146.97,146.95,6.805]
[1746576720477,30.4,146.97,146.96,6.8049]
[1746576721273,30.38,147.0,146.96,6.8049]
[1746576721474,30.4,146.99,146.96,6.8049]
[1746576721978,6.804,146.98,146.96,6.8049]
[1746576722173,30.4,146.99,146.92,2.1241]
[1746576722881,6.8041,146.98,146.95,6.8051]
[1746576725185,6.8046,146.97,146.92,2.1241]
[1746576725385,5.82570997,146.98,146.91,30.38]
[1746576725581,8.00750997,146.98,146.88,30.38]
[1746576725782,6.8063,146.93,146.9,6.8075]
[1746576726082,30.4,146.92,146.87,2.1598]
[1746576726281,30.4,146.91,146.87,8.9688]
[1746576726484,30.4,146.9,146.87,8.9688]
[1746576726686,30.4,146.9,146.87,6.809]
[1746576727992,37.2077,146.9,146.87,6.809]
[1746576730093,30.4,146.9,146.85,30.38]
[1746576730296,30.4,146.9,146.84,4.1572]
[1746576730596,30.4,146.9,146.84,6.8101]
[1746576731196,6.8088,146.88,146.84,6.8101]
[1746576731397,30.4,146.9,146.83,2.1598]
[1746576731994,30.4,146.9,146.8,4.1016]
[1746576732296,6.8098,146.86,146.82,6.811]
[1746576732497,30.4,146.85,146.8,4.1016]
[1746576732798,37.2101,146.85,146.8,4.1016]
[1746576733397,30.4,146.85,146.8,4.1016]
[1746576734694,37.2101,146.85,146.8,4.1016]
[1746576734898,37.2101,146.85,146.82,6.811]
[1746576735501,30.4,146.85,146.82,6.811]
[1746576737303,37.21,146.85,146.82,6.811]
[1746576737604,30.4,146.85,146.79,32.4968]
[1746576738005,6.8112,146.83,146.79,30.4]
[1746576738205,6.8112,146.83,146.79,6.8125]
[1746576738405,6.8112,146.83,146.76,30.4]
[1746576738806,30.4,146.85,146.76,30.4]
[1746576740106,37.2103,146.85,146.81,6.8116]
[1746576740408,30.4,146.85,146.76,30.4]
[1746576740706,37.2102,146.85,146.76,30.4]
[1746576741107,30.4,146.85,146.76,30.4]
[1746576741513,6.8105,146.84,146.76,30.4]
[1746576742109,37.2101,146.85,146.82,6.8113]
[1746576742314,37.2101,146.85,146.76,30.4]
[1746576742614,30.4,146.85,146.76,30.4]
[1746576743514,37.2102,146.85,146.82,6.811]
[1746576743713,37.2102,146.85,146.76,30.4]
[1746576743714,30.4,146.85,146.76,30.4]
[1746576743914,30.4,146.85,146.83,6.8106]
[1746576744813,30.4,146.85,146.76,30.4]
[1746576745210,30.4,146.87,146.78,5.82570997]
[1746576745418,60.8,146.87,146.81,5.82570997]
[1746576745715,30.4,146.87,146.82,4.0506]
[1746576746318,30.4,146.89,146.82,4.0506]
[1746576746613,30.4,146.9,146.84,5.82570997]
[1746576746811,60.8,146.9,146.85,2.1011]
[1746576747012,6.8083,146.89,146.86,6.8092]
[1746576747213,60.8,146.9,146.82,4.0506]
[1746576747615,6.8088,146.88,146.82,4.0506]
[1746576747921,60.8,146.9,146.82,4.0506]
[1746576748218,37.2078,146.9,146.87,6.8088]
[1746576748418,30.4,146.89,146.82,4.0506]
[1746576748816,30.4,146.89,146.88,6.8086]
[1746576751521,60.8,146.9,146.89,6.8081]
[1746576751723,30.4,146.9,146.89,6.8081]
[1746576751925,30.4,146.93,146.91,6.8069]
[1746576752121,30.4,146.92,146.86,7.88960997]
[1746576752827,30.4,146.92,146.91,6.8072]
[1746576754029,30.4,146.93,146.91,6.8072]
[1746576754319,30.4,146.92,146.91,6.8072]
[1746576754727,6.8059,146.94,146.91,6.8072]
[1746576754926,30.4,146.93,146.91,6.8072]
[1746576757829,30.4,146.93,146.9,6.8074]
[1746576758031,30.4,146.93,146.86,7.88960997]
[1746576758725,30.4,146.93,146.91,6.8068]
[1746576758932,30.4,146.93,146.86,7.88960997]
[1746576759428,30.4,146.93,146.91,6.8072]
[1746576761032,37.2063,146.93,146.9,6.8073]
[1746576761233,30.4,146.93,146.86,7.88960997]
[1746576761636,30.4,146.93,146.9,6.8073]
[1746576762230,30.4,146.93,146.91,6.8071]
[1746576764638,30.4,146.93,146.92,6.8067]
[1746576766329,37.2049,146.96,146.93,6.806]
[1746576766525,37.2049,146.96,146.89,36.20570997]
[1746576766526,60.78,146.96,146.89,36.20570997]
[1746576766937,30.38,146.96,146.89,36.20570997]
[1746576767237,6.805,146.96,146.93,6.8059]
[1746576767534,37.185,146.96,146.93,6.8059]
[1746576768438,6.8054,146.95,146.92,6.8066]